[Event "Late-Titled-Tuesday-Blitz-December-26-2023"]
[Site "Chess.com"]
[Date "2023.12.26"]
[Round "6"]
[White "attack2mateU"]
[Black "Kaua18"]
[Result "1-0"]
[WhiteElo "2723"]
[BlackElo "2541"]
[TimeControl "180+1"]
[EndTime "15:05:22 PST"]
[Termination "attack2mateU won by resignation"]

1. e4 {[%clk 0:02:57.5]} 1... c6 {[%clk 0:02:57.4]} 2. Nc3 {[%clk 0:02:57.1]}
2... d5 {[%clk 0:02:57.5]} 3. Nf3 {[%clk 0:02:57.7]} 3... Bg4 {[%clk 0:02:55.3]}
4. h3 {[%clk 0:02:57.5]} 4... Bxf3 {[%clk 0:02:55.4]} 5. Qxf3 {[%clk 0:02:58.4]}
5... e6 {[%clk 0:02:55.4]} 6. Be2 {[%clk 0:02:58.8]} 6... Nd7 {[%clk 0:02:56.1]}
7. d4 {[%clk 0:02:58.3]} 7... dxe4 {[%clk 0:02:48.1]} 8. Nxe4 {[%clk 0:02:59.2]}
8... Ngf6 {[%clk 0:02:47.7]} 9. c3 {[%clk 0:02:56.9]} 9... Nxe4 {[%clk
0:02:47.1]} 10. Qxe4 {[%clk 0:02:57.8]} 10... Be7 {[%clk 0:02:46.3]} 11. O-O
{[%clk 0:02:54.8]} 11... O-O {[%clk 0:02:46.8]} 12. a4 {[%clk 0:02:45.6]} 12...
Nf6 {[%clk 0:02:42.3]} 13. Qc2 {[%clk 0:02:44.5]} 13... Qc7 {[%clk 0:02:39.1]}
14. a5 {[%clk 0:02:40.1]} 14... Rfd8 {[%clk 0:02:37.1]} 15. Bf3 {[%clk 0:02:40]}
15... Rab8 {[%clk 0:02:32.2]} 16. g3 {[%clk 0:02:38.9]} 16... Bd6 {[%clk
0:02:30.8]} 17. Kg2 {[%clk 0:02:34.7]} 17... Rbc8 {[%clk 0:02:30.3]} 18. Re1
{[%clk 0:02:34]} 18... h6 {[%clk 0:02:25.2]} 19. Bd2 {[%clk 0:02:31.2]} 19... c5
{[%clk 0:02:22.2]} 20. dxc5 {[%clk 0:02:30.6]} 20... Bxc5 {[%clk 0:02:22.9]} 21.
Bf4 {[%clk 0:02:24.9]} 21... Bd6 {[%clk 0:02:21.3]} 22. Be3 {[%clk 0:02:22.9]}
22... Bc5 {[%clk 0:02:18.8]} 23. Bxc5 {[%clk 0:02:22.8]} 23... Qxc5 {[%clk
0:02:19.2]} 24. Bxb7 {[%clk 0:02:23.2]} 24... Rc7 {[%clk 0:02:13.2]} 25. a6
{[%clk 0:02:18]} 25... Rcd7 {[%clk 0:02:13.5]} 26. Rad1 {[%clk 0:02:15.6]} 26...
Qb5 {[%clk 0:02:06.4]} 27. Rxd7 {[%clk 0:01:59.7]} 27... Rxd7 {[%clk 0:02:05.6]}
28. Rd1 {[%clk 0:01:59.3]} 28... Rxd1 {[%clk 0:02:02]} 29. Qxd1 {[%clk
0:02:00.2]} 29... Qxb2 {[%clk 0:02:01]} 30. Qd4 {[%clk 0:01:54.2]} 30... e5
{[%clk 0:01:43]} 31. Qxa7 {[%clk 0:01:52.5]} 31... Nd7 {[%clk 0:00:46.6]} 32.
Bc6 {[%clk 0:01:29.1]} 32... Nb6 {[%clk 0:00:36.2]} 33. Qb8+ {[%clk 0:01:25.7]}
33... Kh7 {[%clk 0:00:35.8]} 34. a7 {[%clk 0:01:22.4]} 34... e4 {[%clk
0:00:24.5]} 35. a8=Q {[%clk 0:01:21.7]} 35... e3 {[%clk 0:00:24.4]} 36. Be4+
{[%clk 0:01:20.8]} 1-0

[Event "Late-Titled-Tuesday-Blitz-December-26-2023"]
[Site "Chess.com"]
[Date "2023.12.26"]
[Round "6"]
[White "HalfIsCrayfish"]
[Black "kasparicy"]
[Result "1-0"]
[WhiteElo "2619"]
[BlackElo "2450"]
[TimeControl "180+1"]
[EndTime "15:05:28 PST"]
[Termination "HalfIsCrayfish won by resignation"]

1. c3 {[%clk 0:03:00.9]} 1... f5 {[%clk 0:02:51.5]} 2. d4 {[%clk 0:02:56.3]}
2... Nf6 {[%clk 0:02:51.5]} 3. g3 {[%clk 0:02:52.7]} 3... e6 {[%clk 0:02:51]} 4.
Bg2 {[%clk 0:02:52.9]} 4... d6 {[%clk 0:02:50.8]} 5. Nd2 {[%clk 0:02:52.8]} 5...
Be7 {[%clk 0:02:51.3]} 6. Ngf3 {[%clk 0:02:52.9]} 6... O-O {[%clk 0:02:51.8]} 7.
O-O {[%clk 0:02:51.3]} 7... Nc6 {[%clk 0:02:49.7]} 8. Re1 {[%clk 0:02:50]} 8...
e5 {[%clk 0:02:49.4]} 9. e4 {[%clk 0:02:34.4]} 9... f4 {[%clk 0:02:45.6]} 10.
dxe5 {[%clk 0:02:16.8]} 10... dxe5 {[%clk 0:02:44.4]} 11. Nc4 {[%clk 0:02:16.7]}
11... Ng4 {[%clk 0:02:25.6]} 12. Qxd8 {[%clk 0:02:10.3]} 12... Bxd8 {[%clk
0:02:23]} 13. h3 {[%clk 0:02:07.8]} 13... fxg3 {[%clk 0:02:19.8]} 14. hxg4
{[%clk 0:01:33.7]} 14... gxf2+ {[%clk 0:02:19.4]} 15. Kxf2 {[%clk 0:01:34.6]}
15... Bh4+ {[%clk 0:02:19.2]} 16. Ke2 {[%clk 0:01:35.2]} 16... Bxe1 {[%clk
0:02:19.5]} 17. Kxe1 {[%clk 0:01:35.6]} 17... Bxg4 {[%clk 0:02:19.8]} 18. Nfxe5
{[%clk 0:01:35.9]} 18... Nxe5 {[%clk 0:02:04.8]} 19. Nxe5 {[%clk 0:01:36.8]}
19... Be6 {[%clk 0:01:55.7]} 20. Be3 {[%clk 0:01:32.1]} 20... Rae8 {[%clk
0:01:54.6]} 21. Nd3 {[%clk 0:01:20.9]} 21... Bc4 {[%clk 0:01:30.1]} 22. Nf2
{[%clk 0:01:17.2]} 22... c6 {[%clk 0:01:24.4]} 23. b3 {[%clk 0:01:15.8]} 23...
Be6 {[%clk 0:01:23.1]} 24. Rd1 {[%clk 0:01:15.9]} 24... Rd8 {[%clk 0:01:22.5]}
25. Rxd8 {[%clk 0:01:09.8]} 25... Rxd8 {[%clk 0:01:23.4]} 26. Ke2 {[%clk
0:01:08.4]} 26... h6 {[%clk 0:01:23.1]} 27. Nd3 {[%clk 0:01:03.6]} 27... g5
{[%clk 0:01:22.5]} 28. Ne5 {[%clk 0:01:00.1]} 28... Bf7 {[%clk 0:01:12.1]} 29.
Bf3 {[%clk 0:00:48.8]} 29... a5 {[%clk 0:00:59.1]} 30. Ng4 {[%clk 0:00:48.5]}
30... Kh7 {[%clk 0:00:54.6]} 31. Bd4 {[%clk 0:00:43.1]} 31... h5 {[%clk
0:00:52.4]} 32. Nf6+ {[%clk 0:00:42.9]} 32... Kg6 {[%clk 0:00:52.6]} 33. Bxh5+
{[%clk 0:00:42.6]} 1-0

[Event "Late-Titled-Tuesday-Blitz-December-26-2023"]
[Site "Chess.com"]
[Date "2023.12.26"]
[Round "6"]
[White "frederiksvane"]
[Black "BardArtem"]
[Result "1-0"]
[WhiteElo "2962"]
[BlackElo "2676"]
[TimeControl "180+1"]
[EndTime "15:05:29 PST"]
[Termination "frederiksvane won by resignation"]

1. e4 {[%clk 0:03:00.9]} 1... e5 {[%clk 0:02:56.5]} 2. Nf3 {[%clk 0:03:01.3]}
2... Nc6 {[%clk 0:02:56.9]} 3. Bb5 {[%clk 0:03:01.9]} 3... Nf6 {[%clk
0:02:56.7]} 4. O-O {[%clk 0:02:57.5]} 4... Nxe4 {[%clk 0:02:56.7]} 5. d4 {[%clk
0:02:58]} 5... Nd6 {[%clk 0:02:57]} 6. Bxc6 {[%clk 0:02:58.7]} 6... dxc6 {[%clk
0:02:57.9]} 7. dxe5 {[%clk 0:02:59.2]} 7... Nf5 {[%clk 0:02:58.5]} 8. Qxd8+
{[%clk 0:02:59.8]} 8... Kxd8 {[%clk 0:02:59.4]} 9. Nc3 {[%clk 0:03:00.5]} 9...
Ke8 {[%clk 0:02:59.8]} 10. h3 {[%clk 0:02:56.6]} 10... h5 {[%clk 0:02:59.4]} 11.
Ne2 {[%clk 0:02:53.6]} 11... Be7 {[%clk 0:02:59]} 12. Rd1 {[%clk 0:02:39.4]}
12... Be6 {[%clk 0:02:44.2]} 13. Nf4 {[%clk 0:02:36]} 13... Rh6 {[%clk
0:02:43.9]} 14. Ne2 {[%clk 0:02:27.3]} 14... Rh8 {[%clk 0:02:39.9]} 15. b3
{[%clk 0:02:17.7]} 15... Bd5 {[%clk 0:02:28.6]} 16. Ne1 {[%clk 0:02:13.7]} 16...
Rd8 {[%clk 0:02:20.5]} 17. c4 {[%clk 0:02:03.6]} 17... Be6 {[%clk 0:02:19.6]}
18. Rxd8+ {[%clk 0:02:02.8]} 18... Kxd8 {[%clk 0:02:19.3]} 19. Nf4 {[%clk
0:02:01.7]} 19... Rh6 {[%clk 0:02:06.4]} 20. Nf3 {[%clk 0:02:01.5]} 20... Kc8
{[%clk 0:02:00.2]} 21. Nxe6 {[%clk 0:01:40.3]} 21... Rxe6 {[%clk 0:01:59.2]} 22.
g4 {[%clk 0:01:19.3]} 22... hxg4 {[%clk 0:01:57.4]} 23. hxg4 {[%clk 0:01:20.1]}
23... Nh6 {[%clk 0:01:53.8]} 24. Bxh6 {[%clk 0:01:19.6]} 24... Rxh6 {[%clk
0:01:46.1]} 25. Kg2 {[%clk 0:01:19.8]} 25... Kd7 {[%clk 0:01:39.3]} 26. Kg3
{[%clk 0:01:07.2]} 26... Ke6 {[%clk 0:01:21.3]} 27. Nd4+ {[%clk 0:00:53.8]}
27... Kxe5 {[%clk 0:00:53.7]} 28. Nf5 {[%clk 0:00:54]} 28... Re6 {[%clk
0:00:52]} 29. Nxg7 {[%clk 0:00:53.9]} 29... Rg6 {[%clk 0:00:33.7]} 30. Re1+
{[%clk 0:00:53.5]} 1-0

[Event "Late-Titled-Tuesday-Blitz-December-26-2023"]
[Site "Chess.com"]
[Date "2023.12.26"]
[Round "6"]
[White "b_6"]
[Black "TheMagician"]
[Result "1/2-1/2"]
[WhiteElo "2376"]
[BlackElo "2177"]
[TimeControl "180+1"]
[EndTime "15:05:31 PST"]
[Termination "Game drawn by repetition"]

1. d4 {[%clk 0:03:00.9]} 1... Nf6 {[%clk 0:02:59.4]} 2. Nf3 {[%clk 0:03:00.9]}
2... d5 {[%clk 0:02:59.4]} 3. Bf4 {[%clk 0:03:00.6]} 3... c6 {[%clk 0:02:59.3]}
4. e3 {[%clk 0:02:59.9]} 4... Bg4 {[%clk 0:02:56.7]} 5. c4 {[%clk 0:02:56.4]}
5... Qb6 {[%clk 0:02:53.2]} 6. Qb3 {[%clk 0:02:52.8]} 6... Bxf3 {[%clk
0:02:51.1]} 7. gxf3 {[%clk 0:02:52.8]} 7... Nbd7 {[%clk 0:02:37.9]} 8. Nc3
{[%clk 0:02:42.4]} 8... e6 {[%clk 0:02:23]} 9. c5 {[%clk 0:02:31.5]} 9... Qxb3
{[%clk 0:02:22.2]} 10. axb3 {[%clk 0:02:32.4]} 10... a6 {[%clk 0:02:19.4]} 11.
b4 {[%clk 0:02:28.6]} 11... Rc8 {[%clk 0:02:18.7]} 12. h4 {[%clk 0:02:12.3]}
12... Nh5 {[%clk 0:02:18.5]} 13. Bh2 {[%clk 0:02:08.6]} 13... g6 {[%clk
0:02:18.8]} 14. Be2 {[%clk 0:01:55.7]} 14... Be7 {[%clk 0:02:17.7]} 15. Bg3
{[%clk 0:01:45]} 15... Nxg3 {[%clk 0:02:15.5]} 16. fxg3 {[%clk 0:01:45.9]} 16...
e5 {[%clk 0:02:13.1]} 17. Kd2 {[%clk 0:01:39.4]} 17... h5 {[%clk 0:02:01.5]} 18.
Kd3 {[%clk 0:01:29.7]} 18... f5 {[%clk 0:02:00.9]} 19. f4 {[%clk 0:01:27.6]}
19... e4+ {[%clk 0:01:56.9]} 20. Kd2 {[%clk 0:01:25.3]} 20... Nb8 {[%clk
0:01:55.4]} 21. Na4 {[%clk 0:01:22.7]} 21... Bd8 {[%clk 0:01:52.3]} 22. Ra3
{[%clk 0:01:19]} 22... Rh7 {[%clk 0:01:52]} 23. Rha1 {[%clk 0:01:17.1]} 23...
Rg7 {[%clk 0:01:51.4]} 24. Nc3 {[%clk 0:01:15.2]} 24... Rh7 {[%clk 0:01:50.1]}
25. R3a2 {[%clk 0:01:04.3]} 25... Rd7 {[%clk 0:01:48.8]} 26. Ra3 {[%clk
0:01:00.6]} 26... Ke7 {[%clk 0:01:45.6]} 27. R3a2 {[%clk 0:01:00.5]} 27... Ke6
{[%clk 0:01:45.8]} 28. Ra3 {[%clk 0:01:00.1]} 28... Rdc7 {[%clk 0:01:43.3]} 29.
Bd1 {[%clk 0:00:58.1]} 29... Rh7 {[%clk 0:01:42.8]} 30. Bb3 {[%clk 0:00:57.6]}
30... Rg7 {[%clk 0:01:43.1]} 31. R3a2 {[%clk 0:00:54.7]} 31... Bc7 {[%clk
0:01:42.2]} 32. Ra3 {[%clk 0:00:50.6]} 32... Rd8 {[%clk 0:01:41.6]} 33. Bd1
{[%clk 0:00:48.4]} 33... Rdd7 {[%clk 0:01:41.2]} 34. Be2 {[%clk 0:00:48.1]}
34... Bd8 {[%clk 0:01:41.5]} 35. Na4 {[%clk 0:00:47.5]} 35... Rge7 {[%clk
0:01:40.1]} 36. Nc3 {[%clk 0:00:46.6]} 36... Kf6 {[%clk 0:01:40.1]} 37. Bf1
{[%clk 0:00:46.3]} 37... Ke6 {[%clk 0:01:40.4]} 38. Be2 {[%clk 0:00:46.7]} 38...
Kf6 {[%clk 0:01:40.8]} 39. Nd1 {[%clk 0:00:47]} 39... Ke6 {[%clk 0:01:41.4]} 40.
Nf2 {[%clk 0:00:47.4]} 40... Kf6 {[%clk 0:01:42.3]} 41. Nh3 {[%clk 0:00:47.7]}
41... Rg7 {[%clk 0:01:39.2]} 42. Ng5 {[%clk 0:00:46.3]} 42... Rg8 {[%clk
0:01:36.2]} 43. R3a2 {[%clk 0:00:42.1]} 43... Re8 {[%clk 0:01:36.3]} 44. Ra3
{[%clk 0:00:40.8]} 44... Kg7 {[%clk 0:01:36.4]} 45. Nh3 {[%clk 0:00:40.5]} 45...
Bf6 {[%clk 0:01:36.2]} 46. Nf2 {[%clk 0:00:39.2]} 46... Kf7 {[%clk 0:01:35.7]}
47. Nd1 {[%clk 0:00:39.3]} 47... Bd8 {[%clk 0:01:35.7]} 48. Nc3 {[%clk
0:00:39.7]} 48... Ke6 {[%clk 0:01:35.2]} 49. R3a2 {[%clk 0:00:40.2]} 49... Bc7
{[%clk 0:01:34.7]} 50. Ra3 {[%clk 0:00:40.7]} 50... Bd8 {[%clk 0:01:34.6]} 51.
R3a2 {[%clk 0:00:40.9]} 51... Bc7 {[%clk 0:01:35.1]} 52. Ra3 {[%clk 0:00:41.4]}
52... Bd8 {[%clk 0:01:35.7]} 1/2-1/2

[Event "Late-Titled-Tuesday-Blitz-December-26-2023"]
[Site "Chess.com"]
[Date "2023.12.26"]
[Round "6"]
[White "nitpicker"]
[Black "cthulhuuu"]
[Result "0-1"]
[WhiteElo "2310"]
[BlackElo "2458"]
[TimeControl "180+1"]
[EndTime "15:05:32 PST"]
[Termination "cthulhuuu won on time"]

1. d4 {[%clk 0:03:00.9]} 1... Nf6 {[%clk 0:02:59.3]} 2. c4 {[%clk 0:03:00.9]}
2... e5 {[%clk 0:02:59.5]} 3. dxe5 {[%clk 0:03:00.2]} 3... Ng4 {[%clk
0:02:59.8]} 4. Bf4 {[%clk 0:02:59.4]} 4... Nc6 {[%clk 0:02:58.8]} 5. Nf3 {[%clk
0:02:58]} 5... Bb4+ {[%clk 0:02:58.9]} 6. Nbd2 {[%clk 0:02:56.8]} 6... Qe7
{[%clk 0:02:58.6]} 7. e3 {[%clk 0:02:56.7]} 7... Ngxe5 {[%clk 0:02:58.4]} 8.
Nxe5 {[%clk 0:02:57.2]} 8... Nxe5 {[%clk 0:02:59.3]} 9. Be2 {[%clk 0:02:57]}
9... a5 {[%clk 0:02:58.7]} 10. O-O {[%clk 0:02:55.5]} 10... d6 {[%clk 0:02:59]}
11. Rc1 {[%clk 0:02:42.6]} 11... O-O {[%clk 0:02:57.9]} 12. h3 {[%clk
0:02:23.6]} 12... Be6 {[%clk 0:02:57.4]} 13. Bg3 {[%clk 0:02:17]} 13... f5
{[%clk 0:02:53.3]} 14. f4 {[%clk 0:02:08.8]} 14... Ng6 {[%clk 0:02:50.9]} 15.
Bf3 {[%clk 0:02:08.3]} 15... c6 {[%clk 0:02:45]} 16. Nb3 {[%clk 0:01:55.2]}
16... a4 {[%clk 0:02:43.4]} 17. Nd4 {[%clk 0:01:54.5]} 17... Bc5 {[%clk
0:02:38.2]} 18. Re1 {[%clk 0:01:45.6]} 18... Rfe8 {[%clk 0:02:33.3]} 19. e4
{[%clk 0:01:42.3]} 19... Qf6 {[%clk 0:02:17.9]} 20. e5 {[%clk 0:01:35.8]} 20...
dxe5 {[%clk 0:02:18]} 21. fxe5 {[%clk 0:01:35.5]} 21... Qg5 {[%clk 0:02:17.9]}
22. Bf2 {[%clk 0:01:31.4]} 22... Rad8 {[%clk 0:02:17.9]} 23. Nxe6 {[%clk
0:01:20.6]} 23... Rxe6 {[%clk 0:01:50.1]} 24. Qxa4 {[%clk 0:00:37.6]} 24...
Bxf2+ {[%clk 0:01:43]} 25. Kxf2 {[%clk 0:00:38.5]} 25... Rd2+ {[%clk 0:01:42.9]}
26. Kf1 {[%clk 0:00:30]} 26... Nh4 {[%clk 0:01:26.6]} 27. Rc2 {[%clk 0:00:12.5]}
27... Nxf3 {[%clk 0:01:25]} 28. Rxd2 {[%clk 0:00:01.2]} 28... Nxd2+ {[%clk
0:01:20.3]} 0-1

[Event "Late-Titled-Tuesday-Blitz-December-26-2023"]
[Site "Chess.com"]
[Date "2023.12.26"]
[Round "6"]
[White "norman927"]
[Black "micke12a"]
[Result "1-0"]
[WhiteElo "2345"]
[BlackElo "2391"]
[TimeControl "180+1"]
[EndTime "15:05:40 PST"]
[Termination "norman927 won by checkmate"]

1. e4 {[%clk 0:03:00.9]} 1... c5 {[%clk 0:02:59.9]} 2. Nf3 {[%clk 0:03:00.8]}
2... d6 {[%clk 0:03:00.5]} 3. Nc3 {[%clk 0:02:58.8]} 3... Nf6 {[%clk 0:03:00.2]}
4. Bc4 {[%clk 0:02:58.2]} 4... e6 {[%clk 0:02:59.8]} 5. d4 {[%clk 0:02:57.4]}
5... cxd4 {[%clk 0:03:00.2]} 6. Nxd4 {[%clk 0:02:56.2]} 6... a6 {[%clk
0:03:00.7]} 7. Bb3 {[%clk 0:02:55.2]} 7... b5 {[%clk 0:03:00.3]} 8. Bg5 {[%clk
0:02:51.7]} 8... Be7 {[%clk 0:03:00.2]} 9. Qf3 {[%clk 0:02:50.2]} 9... Bb7
{[%clk 0:02:55.9]} 10. Bxe6 {[%clk 0:02:17]} 10... fxe6 {[%clk 0:02:52.8]} 11.
Nxe6 {[%clk 0:02:17.4]} 11... Qa5 {[%clk 0:02:46.6]} 12. Nxg7+ {[%clk
0:02:16.7]} 12... Kf7 {[%clk 0:02:44.5]} 13. Nf5 {[%clk 0:02:04.1]} 13... Nbd7
{[%clk 0:02:31]} 14. O-O-O {[%clk 0:01:18.7]} 14... b4 {[%clk 0:02:28]} 15.
Nxd6+ {[%clk 0:01:11.7]} 15... Bxd6 {[%clk 0:02:23]} 16. Bxf6 {[%clk 0:01:09.6]}
16... Nxf6 {[%clk 0:02:15.1]} 17. Rxd6 {[%clk 0:01:08.5]} 17... Qg5+ {[%clk
0:02:14.9]} 18. Kb1 {[%clk 0:01:05.3]} 18... bxc3 {[%clk 0:02:15.1]} 19. Rd7+
{[%clk 0:01:05.3]} 19... Ke6 {[%clk 0:02:11.2]} 20. Rxb7 {[%clk 0:01:00.1]}
20... Rhb8 {[%clk 0:02:11.6]} 21. Qxc3 {[%clk 0:00:37]} 21... Qe5 {[%clk
0:01:39.8]} 22. Re7+ {[%clk 0:00:32.3]} 22... Kxe7 {[%clk 0:01:34.4]} 23. Qxe5+
{[%clk 0:00:32.7]} 23... Kf7 {[%clk 0:01:35.1]} 24. Qc7+ {[%clk 0:00:26.5]}
24... Ke6 {[%clk 0:01:33.7]} 25. f4 {[%clk 0:00:25.1]} 25... Ne8 {[%clk
0:01:27.8]} 26. f5+ {[%clk 0:00:19]} 26... Kf6 {[%clk 0:01:26.8]} 27. e5+ {[%clk
0:00:17.5]} 27... Kxf5 {[%clk 0:01:26.3]} 28. Rf1+ {[%clk 0:00:17.3]} 28... Ke6
{[%clk 0:01:24.3]} 29. Qf7+ {[%clk 0:00:17.3]} 29... Kxe5 {[%clk 0:01:24.2]} 30.
Rf5+ {[%clk 0:00:15.1]} 30... Kd6 {[%clk 0:01:21.5]} 31. Rd5+ {[%clk 0:00:12.4]}
31... Kc6 {[%clk 0:01:20.7]} 32. Qd7+ {[%clk 0:00:12.6]} 32... Kb6 {[%clk
0:01:19.3]} 33. Qe6+ {[%clk 0:00:10.8]} 33... Kb7 {[%clk 0:01:17.5]} 34. Rd7+
{[%clk 0:00:09.3]} 34... Nc7 {[%clk 0:01:16.6]} 35. Qd5+ {[%clk 0:00:09.4]}
35... Kc8 {[%clk 0:01:15.1]} 36. Rd8# {[%clk 0:00:09.5]} 1-0

[Event "Late-Titled-Tuesday-Blitz-December-26-2023"]
[Site "Chess.com"]
[Date "2023.12.26"]
[Round "6"]
[White "KNVB"]
[Black "StellarChess"]
[Result "0-1"]
[WhiteElo "2693"]
[BlackElo "2540"]
[TimeControl "180+1"]
[EndTime "15:05:44 PST"]
[Termination "StellarChess won on time"]

1. d4 {[%clk 0:03:00.9]} 1... a6 {[%clk 0:03:00.9]} 2. e4 {[%clk 0:03:00.7]}
2... c6 {[%clk 0:03:00.7]} 3. Bd3 {[%clk 0:02:59.9]} 3... d5 {[%clk 0:03:01.2]}
4. e5 {[%clk 0:03:00.2]} 4... c5 {[%clk 0:02:58.2]} 5. dxc5 {[%clk 0:02:57.2]}
5... Nc6 {[%clk 0:02:56]} 6. f4 {[%clk 0:02:37.2]} 6... Qa5+ {[%clk 0:02:53.2]}
7. c3 {[%clk 0:01:52.7]} 7... Qxc5 {[%clk 0:02:53.3]} 8. Qe2 {[%clk 0:01:53.5]}
8... d4 {[%clk 0:02:30.1]} 9. Be4 {[%clk 0:01:33.1]} 9... Bd7 {[%clk 0:02:14.7]}
10. Nf3 {[%clk 0:01:20.2]} 10... dxc3 {[%clk 0:01:39.8]} 11. Nxc3 {[%clk
0:01:13.2]} 11... e6 {[%clk 0:01:40.3]} 12. Be3 {[%clk 0:01:07.2]} 12... Qa5
{[%clk 0:01:41]} 13. O-O {[%clk 0:00:55.4]} 13... Bc5 {[%clk 0:01:37.3]} 14.
Rfd1 {[%clk 0:00:17.9]} 14... Rd8 {[%clk 0:01:29.9]} 15. a3 {[%clk 0:00:16.1]}
15... Nh6 {[%clk 0:01:22.7]} 16. b4 {[%clk 0:00:09.5]} 16... Bxe3+ {[%clk
0:01:23.2]} 17. Qxe3 {[%clk 0:00:10.4]} 17... Qc7 {[%clk 0:01:23.7]} 18. b5
{[%clk 0:00:07.2]} 18... Ne7 {[%clk 0:01:18.5]} 19. Rac1 {[%clk 0:00:05]} 19...
Nhf5 {[%clk 0:01:14.3]} 20. Qf2 {[%clk 0:00:03.2]} 20... Qb8 {[%clk 0:01:11.3]}
21. g4 {[%clk 0:00:03.1]} 21... Nh6 {[%clk 0:01:10.8]} 22. h3 {[%clk 0:00:01.8]}
22... axb5 {[%clk 0:01:11.1]} 23. Ng5 {[%clk 0:00:01.9]} 23... Bc6 {[%clk
0:01:07.6]} 24. Rxd8+ {[%clk 0:00:01.8]} 24... Qxd8 {[%clk 0:01:07.1]} 25. Rd1
{[%clk 0:00:01.9]} 25... Qc7 {[%clk 0:01:05.6]} 26. Qc5 {[%clk 0:00:02]} 26...
O-O {[%clk 0:00:57.3]} 27. Bxh7+ {[%clk 0:00:01.1]} 27... Kh8 {[%clk 0:00:57.7]}
0-1

[Event "Late-Titled-Tuesday-Blitz-December-26-2023"]
[Site "Chess.com"]
[Date "2023.12.26"]
[Round "6"]
[White "dennisodessa"]
[Black "C_K_G"]
[Result "1-0"]
[WhiteElo "2502"]
[BlackElo "2075"]
[TimeControl "180+1"]
[EndTime "15:05:46 PST"]
[Termination "dennisodessa won by resignation"]

1. d4 {[%clk 0:02:33.6]} 1... d5 {[%clk 0:02:58.9]} 2. c4 {[%clk 0:02:34.3]}
2... e6 {[%clk 0:02:59.4]} 3. Nc3 {[%clk 0:02:33.8]} 3... Nf6 {[%clk 0:02:59.8]}
4. cxd5 {[%clk 0:02:34.5]} 4... exd5 {[%clk 0:02:59.3]} 5. Bg5 {[%clk
0:02:35.2]} 5... Be7 {[%clk 0:02:59.8]} 6. e3 {[%clk 0:02:35.8]} 6... c6 {[%clk
0:03:00.1]} 7. Bd3 {[%clk 0:02:36.4]} 7... O-O {[%clk 0:03:00.6]} 8. Qc2 {[%clk
0:02:36.9]} 8... h6 {[%clk 0:03:00.7]} 9. Bh4 {[%clk 0:02:37.2]} 9... Re8 {[%clk
0:03:00.9]} 10. h3 {[%clk 0:02:37.8]} 10... b6 {[%clk 0:03:00.3]} 11. Nf3 {[%clk
0:02:36.7]} 11... Nbd7 {[%clk 0:02:59.4]} 12. O-O {[%clk 0:02:29]} 12... Nf8
{[%clk 0:02:56.3]} 13. Ne5 {[%clk 0:02:23.4]} 13... Bb7 {[%clk 0:02:44]} 14.
Rfd1 {[%clk 0:02:22.6]} 14... N6d7 {[%clk 0:02:40.2]} 15. Bxe7 {[%clk
0:02:18.7]} 15... Qxe7 {[%clk 0:02:41.1]} 16. Nf3 {[%clk 0:02:16.8]} 16... Ne6
{[%clk 0:02:32.9]} 17. Rac1 {[%clk 0:02:13]} 17... Ng5 {[%clk 0:02:30.6]} 18.
Nxg5 {[%clk 0:02:06.5]} 18... Qxg5 {[%clk 0:02:31.5]} 19. e4 {[%clk 0:01:44.4]}
19... dxe4 {[%clk 0:02:21.8]} 20. Nxe4 {[%clk 0:01:45]} 20... Qh4 {[%clk
0:02:16.3]} 21. Nd6 {[%clk 0:01:44.6]} 21... Reb8 {[%clk 0:01:59.5]} 22. Bc4
{[%clk 0:00:36.9]} 22... Nf6 {[%clk 0:01:37]} 23. Nxf7 {[%clk 0:00:32.3]} 23...
Kf8 {[%clk 0:01:37.1]} 24. Nd6 {[%clk 0:00:23.9]} 24... Qf4 {[%clk 0:01:33.8]}
25. Qg6 {[%clk 0:00:23]} 25... Nd5 {[%clk 0:01:20.6]} 26. Bxd5 {[%clk 0:00:19]}
26... cxd5 {[%clk 0:01:18]} 27. Rc7 {[%clk 0:00:19.9]} 1-0

[Event "Late-Titled-Tuesday-Blitz-December-26-2023"]
[Site "Chess.com"]
[Date "2023.12.26"]
[Round "6"]
[White "The_Straightforward_Rook"]
[Black "Grammnik"]
[Result "0-1"]
[WhiteElo "2414"]
[BlackElo "2214"]
[TimeControl "180+1"]
[EndTime "15:05:50 PST"]
[Termination "Grammnik won by checkmate"]

1. e4 {[%clk 0:03:00.9]} 1... c6 {[%clk 0:02:59]} 2. Nc3 {[%clk 0:02:59.8]} 2...
d5 {[%clk 0:02:58.9]} 3. Nf3 {[%clk 0:03:00.5]} 3... Bg4 {[%clk 0:02:56.9]} 4.
h3 {[%clk 0:03:00]} 4... Bxf3 {[%clk 0:02:56.4]} 5. Qxf3 {[%clk 0:03:00.9]} 5...
e6 {[%clk 0:02:56.3]} 6. Qg3 {[%clk 0:03:00.7]} 6... Nf6 {[%clk 0:02:49]} 7. d3
{[%clk 0:02:53.8]} 7... Nbd7 {[%clk 0:02:44]} 8. Be2 {[%clk 0:02:52.1]} 8... d4
{[%clk 0:02:40.9]} 9. Nb1 {[%clk 0:02:48.1]} 9... e5 {[%clk 0:02:40.5]} 10. O-O
{[%clk 0:02:46]} 10... Bd6 {[%clk 0:02:35.3]} 11. Qxg7 {[%clk 0:02:43.7]} 11...
Rg8 {[%clk 0:02:35.4]} 12. Qh6 {[%clk 0:02:44.3]} 12... Rg6 {[%clk 0:02:33.3]}
13. Qh4 {[%clk 0:02:44.2]} 13... Qc7 {[%clk 0:02:28.1]} 14. a4 {[%clk
0:02:43.2]} 14... O-O-O {[%clk 0:02:26.7]} 15. Kh1 {[%clk 0:02:36.3]} 15... Rdg8
{[%clk 0:02:26.5]} 16. Rg1 {[%clk 0:02:36.9]} 16... Be7 {[%clk 0:02:22.5]} 17.
Na3 {[%clk 0:02:28.3]} 17... Nf8 {[%clk 0:02:16.4]} 18. Nc4 {[%clk 0:02:17.8]}
18... Kb8 {[%clk 0:02:13.9]} 19. f3 {[%clk 0:02:14.3]} 19... Rg3 {[%clk
0:01:58.1]} 20. Bd2 {[%clk 0:02:04.2]} 20... h5 {[%clk 0:01:37.8]} 21. Be1
{[%clk 0:01:58.9]} 21... R3g5 {[%clk 0:01:33.2]} 22. Qf2 {[%clk 0:01:56.6]}
22... Ne6 {[%clk 0:01:30]} 23. Bd2 {[%clk 0:01:53.1]} 23... Nf4 {[%clk
0:01:29.4]} 24. Bxf4 {[%clk 0:01:52.4]} 24... exf4 {[%clk 0:01:30.3]} 25. Bf1
{[%clk 0:01:51]} 25... c5 {[%clk 0:01:23.2]} 26. a5 {[%clk 0:01:49.6]} 26... h4
{[%clk 0:01:15.4]} 27. Qd2 {[%clk 0:01:44.1]} 27... Nh5 {[%clk 0:01:14.7]} 28.
e5 {[%clk 0:01:40.8]} 28... Ng3+ {[%clk 0:01:13.4]} 29. Kh2 {[%clk 0:01:40.6]}
29... f6 {[%clk 0:01:10.8]} 30. Qxf4 {[%clk 0:01:38.4]} 30... fxe5 {[%clk
0:01:09.2]} 31. Qf7 {[%clk 0:01:23.3]} 31... Bd6 {[%clk 0:01:05.2]} 32. Nxd6
{[%clk 0:01:12.8]} 32... Qxd6 {[%clk 0:01:04.2]} 33. Re1 {[%clk 0:01:13.7]}
33... R5g7 {[%clk 0:00:50.4]} 34. Qb3 {[%clk 0:00:53.1]} 34... e4 {[%clk
0:00:49.5]} 35. Rh1 {[%clk 0:00:38.5]} 35... Ne2+ {[%clk 0:00:42.1]} 36. g3
{[%clk 0:00:36.8]} 36... Qxg3# {[%clk 0:00:41.3]} 0-1